[Event "*** SCC Grand Prix: Titled Tuesday Blitz"]
[Site "Chess.com"]
[Date "2020.07.21"]
[Round "7"]
[White "Agibileg"]
[Black "Panterov"]
[Result "0-1"]
[WhiteElo "2403"]
[BlackElo "2192"]
[TimeControl "180+1"]
[EndTime "11:18:41 PDT"]
[Termination "Panterov won by resignation"]

1. d4 {[%clk 0:03:00.6]} 1... d5 {[%clk 0:02:57.4]} 2. c4 {[%clk 0:03:00.8]}
2... c6 {[%clk 0:02:53.9]} 3. Nc3 {[%clk 0:03:01.1]} 3... e5 {[%clk 0:02:40]} 4.
cxd5 {[%clk 0:02:56]} 4... cxd5 {[%clk 0:02:34.5]} 5. dxe5 {[%clk 0:02:53.6]}
5... d4 {[%clk 0:02:28]} 6. Ne4 {[%clk 0:02:53.9]} 6... Qa5+ {[%clk 0:02:22.6]}
7. Bd2 {[%clk 0:02:53.8]} 7... Qxe5 {[%clk 0:02:22.6]} 8. Ng3 {[%clk 0:02:53.8]}
8... Qd5 {[%clk 0:02:14.2]} 9. Nf3 {[%clk 0:02:53.6]} 9... Nc6 {[%clk
0:02:12.5]} 10. Bc3 {[%clk 0:02:50.4]} 10... Bc5 {[%clk 0:01:57.6]} 11. e3
{[%clk 0:02:50.3]} 11... Bg4 {[%clk 0:01:57.7]} 12. exd4 {[%clk 0:02:49.6]}
12... Bxf3 {[%clk 0:01:53.8]} 13. Qxf3 {[%clk 0:02:44.1]} 13... Qxf3 {[%clk
0:01:51.5]} 14. gxf3 {[%clk 0:02:45]} 14... Bxd4 {[%clk 0:01:49]} 15. Bxd4
{[%clk 0:02:38.6]} 15... Nxd4 {[%clk 0:01:48.9]} 16. O-O-O {[%clk 0:02:39.5]}
16... O-O-O {[%clk 0:01:44.9]} 17. Bh3+ {[%clk 0:02:36.9]} 17... Kc7 {[%clk
0:01:44.3]} 18. Rd3 {[%clk 0:02:35.4]} 18... Ne7 {[%clk 0:01:38.9]} 19. Rhd1
{[%clk 0:02:33.8]} 19... Nec6 {[%clk 0:01:29.2]} 20. a3 {[%clk 0:02:31.4]} 20...
g6 {[%clk 0:01:11.3]} 21. f4 {[%clk 0:02:30]} 21... Rhe8 {[%clk 0:01:06.2]} 22.
f5 {[%clk 0:02:28.6]} 22... Ne2+ {[%clk 0:00:59.7]} 23. Nxe2 {[%clk 0:02:22.7]}
23... Rxe2 {[%clk 0:01:00.6]} 24. fxg6 {[%clk 0:02:22.7]} 24... hxg6 {[%clk
0:00:56.3]} 25. Rd7+ {[%clk 0:02:22.3]} 25... Rxd7 {[%clk 0:00:54.9]} 26. Rxd7+
{[%clk 0:02:23.2]} 26... Kb6 {[%clk 0:00:52.5]} 27. Rxf7 {[%clk 0:02:24.1]}
27... Nd4 {[%clk 0:00:52.7]} 28. Bc8 {[%clk 0:02:21.8]} 28... Rc2+ {[%clk
0:00:49.8]} 29. Kb1 {[%clk 0:02:20.9]} 29... Rxc8 {[%clk 0:00:50.7]} 30. Rf6+
{[%clk 0:02:20.5]} 30... Rc6 {[%clk 0:00:50]} 31. Rf4 {[%clk 0:02:20.5]} 31...
Nf5 {[%clk 0:00:46.4]} 32. h4 {[%clk 0:02:16.2]} 32... Rc5 {[%clk 0:00:43.3]}
33. Rg4 {[%clk 0:02:15.2]} 33... Ne7 {[%clk 0:00:33.5]} 34. Re4 {[%clk
0:02:13.9]} 34... Nd5 {[%clk 0:00:30.4]} 35. Re6+ {[%clk 0:02:12.3]} 35... Rc6
{[%clk 0:00:30.1]} 36. Re5 {[%clk 0:02:12.6]} 36... Rd6 {[%clk 0:00:30.1]} 37.
h5 {[%clk 0:02:10.2]} 37... gxh5 {[%clk 0:00:29.4]} 38. Rxh5 {[%clk 0:02:11.1]}
38... Kc5 {[%clk 0:00:29.6]} 39. Rh7 {[%clk 0:02:09.7]} 39... Kc6 {[%clk
0:00:28.3]} 40. Kc2 {[%clk 0:02:06.6]} 40... Rf6 {[%clk 0:00:28.4]} 41. Rh2
{[%clk 0:02:06.2]} 41... Nf4 {[%clk 0:00:27.7]} 42. Kd2 {[%clk 0:02:03.6]} 42...
Nd5 {[%clk 0:00:27.1]} 43. Ke2 {[%clk 0:02:02.6]} 43... Re6+ {[%clk 0:00:26.8]}
44. Kd3 {[%clk 0:02:02.4]} 44... Nf4+ {[%clk 0:00:26.3]} 45. Kc3 {[%clk
0:02:02.2]} 45... Ne2+ {[%clk 0:00:25.3]} 46. Kd3 {[%clk 0:02:01.5]} 46... Nf4+
{[%clk 0:00:24.7]} 47. Kc3 {[%clk 0:02:01.5]} 47... Re2 {[%clk 0:00:24.7]} 48.
Rh6+ {[%clk 0:02:00]} 48... Kc7 {[%clk 0:00:19.3]} 49. Rh7+ {[%clk 0:01:59.6]}
49... Kc6 {[%clk 0:00:18.9]} 50. Rh6+ {[%clk 0:01:59.8]} 50... Ne6 {[%clk
0:00:18.5]} 51. Kd3 {[%clk 0:01:56.9]} 51... Re5 {[%clk 0:00:17.9]} 52. f4
{[%clk 0:01:56.5]} 52... Rd5+ {[%clk 0:00:15.8]} 53. Ke4 {[%clk 0:01:56.7]}
53... Rd6 {[%clk 0:00:15.8]} 54. Ke5 {[%clk 0:01:54.7]} 54... Rd5+ {[%clk
0:00:12.5]} 55. Ke4 {[%clk 0:01:53.7]} 55... Rd4+ {[%clk 0:00:11.5]} 56. Ke3
{[%clk 0:01:51.4]} 56... Rd6 {[%clk 0:00:11.5]} 57. Rh1 {[%clk 0:01:44.8]} 57...
Nc5 {[%clk 0:00:10.2]} 58. Rc1 {[%clk 0:01:39.3]} 58... Re6+ {[%clk 0:00:08.2]}
59. Kd4 {[%clk 0:01:39]} 59... Rd6+ {[%clk 0:00:06]} 60. Ke5 {[%clk 0:01:38.9]}
60... Rd5+ {[%clk 0:00:05.6]} 61. Kf6 {[%clk 0:01:39.2]} 61... Kd7 {[%clk
0:00:05.8]} 62. f5 {[%clk 0:01:39]} 62... Ne4+ {[%clk 0:00:05.9]} 63. Kg6 {[%clk
0:01:38.9]} 63... Rd6+ {[%clk 0:00:05.9]} 64. Kg7 {[%clk 0:01:38.8]} 64... Rd5
{[%clk 0:00:02.6]} 65. Re1 {[%clk 0:01:35.2]} 65... Nd6 {[%clk 0:00:02.3]} 66.
f6 {[%clk 0:01:35]} 66... Rg5+ {[%clk 0:00:02.3]} 67. Kh6 {[%clk 0:01:34.2]}
67... Rf5 {[%clk 0:00:02.4]} 68. Kg6 {[%clk 0:01:32.7]} 68... Rf2 {[%clk
0:00:02.6]} 69. b4 {[%clk 0:01:32.9]} 69... Rg2+ {[%clk 0:00:02.9]} 70. Kh6
{[%clk 0:01:31.7]} 70... Rf2 {[%clk 0:00:03.8]} 71. Re7+ {[%clk 0:01:30.7]}
71... Kc6 {[%clk 0:00:03.5]} 72. Kg6 {[%clk 0:01:30.8]} 72... Rg2+ {[%clk
0:00:03.8]} 73. Kh6 {[%clk 0:01:29.6]} 73... Nf5+ {[%clk 0:00:02.9]} 74. Kh7
{[%clk 0:01:28.5]} 74... Nxe7 {[%clk 0:00:03.8]} 75. fxe7 {[%clk 0:01:28.4]}
75... Re2 {[%clk 0:00:04]} 76. Kg7 {[%clk 0:01:28.8]} 76... Rxe7+ {[%clk
0:00:03.9]} 77. Kf6 {[%clk 0:01:29.7]} 77... Re3 {[%clk 0:00:03.8]} 78. a4
{[%clk 0:01:30.6]} 78... Ra3 {[%clk 0:00:04.3]} 79. b5+ {[%clk 0:01:31.5]} 79...
Kb6 {[%clk 0:00:04.3]} 0-1

[Event "*** SCC Grand Prix: Titled Tuesday Blitz"]
[Site "Chess.com"]
[Date "2020.07.21"]
[Round "7"]
[White "CzechmVIII"]
[Black "MacDaddyMac"]
[Result "0-1"]
[WhiteElo "2197"]
[BlackElo "2371"]
[TimeControl "180+1"]
[EndTime "11:18:43 PDT"]
[Termination "MacDaddyMac won on time"]

1. e4 {[%clk 0:03:00.9]} 1... e6 {[%clk 0:02:59.9]} 2. d4 {[%clk 0:03:00.4]}
2... d5 {[%clk 0:03:00.8]} 3. e5 {[%clk 0:03:00.6]} 3... c5 {[%clk 0:02:58.7]}
4. c3 {[%clk 0:03:00.8]} 4... Nc6 {[%clk 0:02:58.2]} 5. Nf3 {[%clk 0:03:01]}
5... Bd7 {[%clk 0:02:55.8]} 6. Bd3 {[%clk 0:03:01]} 6... Qb6 {[%clk 0:02:56]} 7.
dxc5 {[%clk 0:02:59]} 7... Bxc5 {[%clk 0:02:55.4]} 8. O-O {[%clk 0:02:59.1]}
8... Nh6 {[%clk 0:02:55.2]} 9. b4 {[%clk 0:02:52.8]} 9... Be7 {[%clk 0:02:52.2]}
10. a4 {[%clk 0:02:29.9]} 10... Ng4 {[%clk 0:02:45.5]} 11. Qe2 {[%clk
0:02:06.1]} 11... h5 {[%clk 0:02:40]} 12. Re1 {[%clk 0:01:48.5]} 12... Rc8
{[%clk 0:02:07.4]} 13. a5 {[%clk 0:01:45.9]} 13... Qc7 {[%clk 0:02:03.4]} 14. h3
{[%clk 0:01:24.8]} 14... Nh6 {[%clk 0:01:34]} 15. Bf4 {[%clk 0:01:24.3]} 15...
Rg8 {[%clk 0:01:18.9]} 16. Ng5 {[%clk 0:00:59.9]} 16... a6 {[%clk 0:00:58.4]}
17. Qxh5 {[%clk 0:00:48.4]} 17... Bxg5 {[%clk 0:00:57.2]} 18. Qxg5 {[%clk
0:00:39.2]} 18... Qd8 {[%clk 0:00:56.5]} 19. Qxd8+ {[%clk 0:00:36.9]} 19... Kxd8
{[%clk 0:00:57.4]} 20. Nd2 {[%clk 0:00:29.3]} 20... g5 {[%clk 0:00:55.7]} 21.
Bh2 {[%clk 0:00:26.1]} 21... Ne7 {[%clk 0:00:47]} 22. Rac1 {[%clk 0:00:24]}
22... g4 {[%clk 0:00:40.2]} 23. h4 {[%clk 0:00:20.1]} 23... Nhf5 {[%clk
0:00:40.1]} 24. Bg3 {[%clk 0:00:19.9]} 24... Rh8 {[%clk 0:00:35.2]} 25. Nb3
{[%clk 0:00:18.4]} 25... Nxh4 {[%clk 0:00:33.8]} 26. Bxh4 {[%clk 0:00:18.7]}
26... Rxh4 {[%clk 0:00:33.1]} 27. g3 {[%clk 0:00:18.8]} 27... Rh8 {[%clk
0:00:31.3]} 28. Kg2 {[%clk 0:00:18.3]} 28... Kc7 {[%clk 0:00:27.1]} 29. Nc5
{[%clk 0:00:18.5]} 29... Bc6 {[%clk 0:00:21.6]} 30. Rh1 {[%clk 0:00:18.4]} 30...
d4+ {[%clk 0:00:21.4]} 31. Be4 {[%clk 0:00:18]} 31... Rxh1 {[%clk 0:00:19.7]}
32. Rxh1 {[%clk 0:00:17]} 32... dxc3 {[%clk 0:00:19.9]} 33. Bxc6 {[%clk
0:00:13.7]} 33... Nxc6 {[%clk 0:00:19.9]} 34. Rc1 {[%clk 0:00:13.2]} 34... Nxe5
{[%clk 0:00:20.2]} 35. Rxc3 {[%clk 0:00:13.4]} 35... Nc6 {[%clk 0:00:20.5]} 36.
f3 {[%clk 0:00:11.7]} 36... gxf3+ {[%clk 0:00:20.1]} 37. Kxf3 {[%clk 0:00:11.7]}
37... Rh8 {[%clk 0:00:16.7]} 38. Kf4 {[%clk 0:00:11.1]} 38... Rh5 {[%clk
0:00:15.3]} 39. g4 {[%clk 0:00:11.1]} 39... Rd5 {[%clk 0:00:15.1]} 40. Kg3
{[%clk 0:00:09.6]} 40... Rd4 {[%clk 0:00:14.8]} 41. Rf3 {[%clk 0:00:09.2]} 41...
f5 {[%clk 0:00:15]} 42. gxf5 {[%clk 0:00:09]} 42... exf5 {[%clk 0:00:15.5]} 43.
Rxf5 {[%clk 0:00:09.1]} 43... Rxb4 {[%clk 0:00:15.8]} 44. Ne6+ {[%clk 0:00:09]}
44... Kb8 {[%clk 0:00:15.8]} 45. Nf4 {[%clk 0:00:08.6]} 45... Rb5 {[%clk
0:00:15.5]} 46. Rxb5 {[%clk 0:00:08.4]} 46... axb5 {[%clk 0:00:16.4]} 47. Nd5
{[%clk 0:00:08.4]} 47... Nxa5 {[%clk 0:00:16.6]} 48. Kf3 {[%clk 0:00:08.3]}
48... Ka7 {[%clk 0:00:16.6]} 49. Ke3 {[%clk 0:00:08.8]} 49... Ka6 {[%clk
0:00:17.2]} 50. Kd4 {[%clk 0:00:09.1]} 50... Nc6+ {[%clk 0:00:17.7]} 51. Kc3
{[%clk 0:00:09]} 51... Ka5 {[%clk 0:00:17.4]} 52. Kb2 {[%clk 0:00:05.5]} 52...
b4 {[%clk 0:00:17.7]} 53. Ne3 {[%clk 0:00:04.7]} 53... b5 {[%clk 0:00:17.5]} 54.
Nd5 {[%clk 0:00:04.6]} 54... Nd4 {[%clk 0:00:16.8]} 55. Nc7 {[%clk 0:00:03.2]}
55... Ka4 {[%clk 0:00:16.6]} 56. Nd5 {[%clk 0:00:03.1]} 56... b3 {[%clk
0:00:14.9]} 57. Nb6+ {[%clk 0:00:03.2]} 57... Kb4 {[%clk 0:00:14.9]} 58. Nd5+
{[%clk 0:00:03.1]} 58... Kc4 {[%clk 0:00:15]} 59. Nb6+ {[%clk 0:00:03.3]} 59...
Kc5 {[%clk 0:00:15.4]} 60. Nd7+ {[%clk 0:00:03.3]} 60... Kb4 {[%clk 0:00:15.2]}
61. Ne5 {[%clk 0:00:02.5]} 61... Ka4 {[%clk 0:00:13.1]} 62. Nd7 {[%clk
0:00:02.3]} 62... Ka5 {[%clk 0:00:08.3]} 63. Nc5 {[%clk 0:00:02.1]} 63... Kb4
{[%clk 0:00:08.7]} 64. Na6+ {[%clk 0:00:01.9]} 64... Kc4 {[%clk 0:00:08.9]} 65.
Nc7 {[%clk 0:00:02.4]} 65... Ne2 {[%clk 0:00:05.6]} 66. Nxb5 {[%clk 0:00:01.5]}
66... Nc1 {[%clk 0:00:03.1]} 0-1

[Event "*** SCC Grand Prix: Titled Tuesday Blitz"]
[Site "Chess.com"]
[Date "2020.07.21"]
[Round "7"]
[White "Maksat-94"]
[Black "doons21"]
[Result "1/2-1/2"]
[WhiteElo "2474"]
[BlackElo "2630"]
[TimeControl "180+1"]
[EndTime "11:18:45 PDT"]
[Termination "Game drawn - insufficient material"]

1. Nf3 {[%clk 0:03:00.9]} 1... Nf6 {[%clk 0:02:59.2]} 2. g3 {[%clk 0:02:59.4]}
2... g6 {[%clk 0:02:58.7]} 3. Bg2 {[%clk 0:02:59.8]} 3... Bg7 {[%clk 0:02:59.4]}
4. O-O {[%clk 0:02:59.4]} 4... O-O {[%clk 0:03:00.3]} 5. c4 {[%clk 0:02:58.2]}
5... d6 {[%clk 0:02:57.2]} 6. Nc3 {[%clk 0:02:57.5]} 6... e5 {[%clk 0:02:55.1]}
7. d3 {[%clk 0:02:57.4]} 7... a5 {[%clk 0:02:55]} 8. Bg5 {[%clk 0:02:55.2]} 8...
c6 {[%clk 0:02:48.9]} 9. Rb1 {[%clk 0:02:51.8]} 9... Nbd7 {[%clk 0:02:35.1]} 10.
a3 {[%clk 0:02:51.1]} 10... h6 {[%clk 0:02:35]} 11. Bxf6 {[%clk 0:02:50.4]}
11... Nxf6 {[%clk 0:02:35.9]} 12. Nd2 {[%clk 0:02:48.8]} 12... Be6 {[%clk
0:02:29.5]} 13. b4 {[%clk 0:02:47.7]} 13... axb4 {[%clk 0:02:28.9]} 14. axb4
{[%clk 0:02:47.6]} 14... Qd7 {[%clk 0:02:29]} 15. b5 {[%clk 0:02:47.4]} 15...
Bh3 {[%clk 0:02:27]} 16. bxc6 {[%clk 0:02:45.8]} 16... bxc6 {[%clk 0:02:27.8]}
17. Qb3 {[%clk 0:02:35.2]} 17... Bxg2 {[%clk 0:01:57.2]} 18. Kxg2 {[%clk
0:02:34]} 18... d5 {[%clk 0:01:31]} 19. Qb7 {[%clk 0:02:32.3]} 19... Qc8 {[%clk
0:01:12.7]} 20. Rfc1 {[%clk 0:02:29.8]} 20... Qe6 {[%clk 0:00:30.1]} 21. cxd5
{[%clk 0:01:55.1]} 21... cxd5 {[%clk 0:00:31]} 22. Rb6 {[%clk 0:01:54.5]} 22...
Qg4 {[%clk 0:00:31.4]} 23. Nf3 {[%clk 0:01:36.4]} 23... e4 {[%clk 0:00:30.3]}
24. Ne5 {[%clk 0:01:35.8]} 24... Qg5 {[%clk 0:00:26]} 25. Nxf7 {[%clk
0:01:22.7]} 25... Qxc1 {[%clk 0:00:23.3]} 26. Nxd5 {[%clk 0:01:22.5]} 26... Rxf7
{[%clk 0:00:12.9]} 27. Qxa8+ {[%clk 0:01:20.7]} 27... Kh7 {[%clk 0:00:13.2]} 28.
Nxf6+ {[%clk 0:01:17.8]} 28... Bxf6 {[%clk 0:00:13.5]} 29. Qxe4 {[%clk
0:01:13.8]} 29... Qc5 {[%clk 0:00:13.6]} 30. Re6 {[%clk 0:01:07.1]} 30... Qf5
{[%clk 0:00:11.3]} 31. Qc6 {[%clk 0:00:44.8]} 31... Bg7 {[%clk 0:00:10.8]} 32.
f3 {[%clk 0:00:44.2]} 32... h5 {[%clk 0:00:09.9]} 33. Qe4 {[%clk 0:00:41.2]}
33... Qg5 {[%clk 0:00:09.5]} 34. h4 {[%clk 0:00:39.4]} 34... Qf5 {[%clk
0:00:09.7]} 35. Qxf5 {[%clk 0:00:38.4]} 35... Rxf5 {[%clk 0:00:10.6]} 36. e3
{[%clk 0:00:32.6]} 36... Ra5 {[%clk 0:00:10]} 37. f4 {[%clk 0:00:32.5]} 37...
Ra3 {[%clk 0:00:09.4]} 38. Rd6 {[%clk 0:00:31.4]} 38... Bf8 {[%clk 0:00:08.8]}
39. Rd7+ {[%clk 0:00:30.5]} 39... Kg8 {[%clk 0:00:09.4]} 40. Kf3 {[%clk
0:00:30.7]} 40... Ra1 {[%clk 0:00:07.9]} 41. d4 {[%clk 0:00:28.3]} 41... Bg7
{[%clk 0:00:06.1]} 42. Rb7 {[%clk 0:00:20.6]} 42... Bf6 {[%clk 0:00:05.7]} 43.
d5 {[%clk 0:00:20.1]} 43... Rd1 {[%clk 0:00:05.2]} 44. e4 {[%clk 0:00:19.6]}
44... Rd3+ {[%clk 0:00:05.3]} 45. Kf2 {[%clk 0:00:19.5]} 45... Bd4+ {[%clk
0:00:05.1]} 46. Kg2 {[%clk 0:00:18.1]} 46... Rd2+ {[%clk 0:00:05.6]} 47. Kf1
{[%clk 0:00:17.9]} 47... Bf2 {[%clk 0:00:03.4]} 48. Rb3 {[%clk 0:00:15.6]} 48...
Bc5 {[%clk 0:00:02.6]} 49. Rc3 {[%clk 0:00:14.5]} 49... Bd4 {[%clk 0:00:02]} 50.
Rc4 {[%clk 0:00:13.5]} 50... Kf7 {[%clk 0:00:01.2]} 51. e5 {[%clk 0:00:12.6]}
51... Bxe5 {[%clk 0:00:01.8]} 52. fxe5 {[%clk 0:00:11.8]} 52... Rxd5 {[%clk
0:00:02.7]} 53. Re4 {[%clk 0:00:11.9]} 53... Ke6 {[%clk 0:00:02.8]} 54. Kf2
{[%clk 0:00:12.4]} 54... Rxe5 {[%clk 0:00:03.4]} 55. Rxe5+ {[%clk 0:00:12.8]}
55... Kxe5 {[%clk 0:00:04.3]} 56. Kf3 {[%clk 0:00:13.2]} 56... Kf5 {[%clk
0:00:04.6]} 57. g4+ {[%clk 0:00:13.4]} 57... hxg4+ {[%clk 0:00:04.7]} 58. Kg3
{[%clk 0:00:13.9]} 58... Kf6 {[%clk 0:00:04.2]} 59. Kxg4 {[%clk 0:00:13]} 59...
Kg7 {[%clk 0:00:04.8]} 60. Kg5 {[%clk 0:00:13]} 60... Kh7 {[%clk 0:00:05.3]} 61.
h5 {[%clk 0:00:13.5]} 61... gxh5 {[%clk 0:00:05.4]} 62. Kxh5 {[%clk 0:00:14]}
1/2-1/2

[Event "*** SCC Grand Prix: Titled Tuesday Blitz"]
[Site "Chess.com"]
[Date "2020.07.21"]
[Round "7"]
[White "White_Ghost"]
[Black "nobodyperfect13"]
[Result "0-1"]
[WhiteElo "2505"]
[BlackElo "2294"]
[TimeControl "180+1"]
[EndTime "11:18:48 PDT"]
[Termination "nobodyperfect13 won by checkmate"]

1. d4 {[%clk 0:02:00.1]} 1... Nf6 {[%clk 0:02:57.6]} 2. c4 {[%clk 0:02:00.1]}
2... e6 {[%clk 0:02:57.6]} 3. Nf3 {[%clk 0:01:59.9]} 3... b6 {[%clk 0:02:55.3]}
4. g3 {[%clk 0:01:59.6]} 4... Bb7 {[%clk 0:02:54.6]} 5. Bg2 {[%clk 0:01:59.6]}
5... Bb4+ {[%clk 0:02:53]} 6. Bd2 {[%clk 0:01:58.4]} 6... Qe7 {[%clk 0:02:53.1]}
7. O-O {[%clk 0:01:49.4]} 7... O-O {[%clk 0:02:49.1]} 8. Nc3 {[%clk 0:01:48.4]}
8... Bxc3 {[%clk 0:02:47.9]} 9. Bxc3 {[%clk 0:01:48.4]} 9... Ne4 {[%clk
0:02:47.5]} 10. Be1 {[%clk 0:01:48.5]} 10... d5 {[%clk 0:02:42.9]} 11. Nd2
{[%clk 0:01:47]} 11... Nd7 {[%clk 0:02:37.2]} 12. Nxe4 {[%clk 0:01:46]} 12...
dxe4 {[%clk 0:02:37.3]} 13. Bc3 {[%clk 0:01:39.8]} 13... e5 {[%clk 0:02:33.6]}
14. d5 {[%clk 0:01:37.3]} 14... f5 {[%clk 0:02:31.7]} 15. Qd2 {[%clk 0:01:36.5]}
15... a5 {[%clk 0:02:25.6]} 16. Rad1 {[%clk 0:01:31.8]} 16... Qd6 {[%clk
0:02:20.4]} 17. g4 {[%clk 0:01:21.5]} 17... Nc5 {[%clk 0:02:16.3]} 18. gxf5
{[%clk 0:01:19.9]} 18... Rxf5 {[%clk 0:02:15.9]} 19. Qe3 {[%clk 0:01:19.9]}
19... Raf8 {[%clk 0:02:03.4]} 20. b3 {[%clk 0:00:53.5]} 20... Qf6 {[%clk
0:01:50.8]} 21. h3 {[%clk 0:00:35.4]} 21... Rf4 {[%clk 0:01:46.9]} 22. Qg3
{[%clk 0:00:32]} 22... h6 {[%clk 0:01:35.9]} 23. Bd2 {[%clk 0:00:30]} 23... Rf5
{[%clk 0:01:30]} 24. Be3 {[%clk 0:00:28]} 24... Kh7 {[%clk 0:01:26.7]} 25. Kh2
{[%clk 0:00:18.3]} 25... Kh8 {[%clk 0:01:19.8]} 26. Bh1 {[%clk 0:00:15.7]} 26...
Rf4 {[%clk 0:01:12.5]} 27. Rg1 {[%clk 0:00:14.6]} 27... Bc8 {[%clk 0:01:08.9]}
28. Rdf1 {[%clk 0:00:14.5]} 28... Rh4 {[%clk 0:01:05.6]} 29. f3 {[%clk
0:00:13.5]} 29... Rxh3+ {[%clk 0:01:05.3]} 30. Qxh3 {[%clk 0:00:13]} 30... Bxh3
{[%clk 0:01:04.8]} 31. Kxh3 {[%clk 0:00:13.9]} 31... Qf5+ {[%clk 0:01:00.6]} 32.
Kg3 {[%clk 0:00:12.9]} 32... Qh5 {[%clk 0:00:51.6]} 33. fxe4 {[%clk 0:00:11.8]}
33... Rxf1 {[%clk 0:00:43.6]} 34. Rxf1 {[%clk 0:00:12]} 34... Qxe2 {[%clk
0:00:36.3]} 35. Rf8+ {[%clk 0:00:08.7]} 35... Kh7 {[%clk 0:00:36]} 36. Bxc5
{[%clk 0:00:09.3]} 36... bxc5 {[%clk 0:00:36]} 37. Rf2 {[%clk 0:00:10.2]} 37...
Qe3+ {[%clk 0:00:33.6]} 38. Kg2 {[%clk 0:00:08.6]} 38... h5 {[%clk 0:00:32.6]}
39. Kg1 {[%clk 0:00:08.4]} 39... Kh6 {[%clk 0:00:31.4]} 40. Bf3 {[%clk 0:00:08]}
40... g5 {[%clk 0:00:29]} 41. Kg2 {[%clk 0:00:08.2]} 41... g4 {[%clk 0:00:29.2]}
42. Bd1 {[%clk 0:00:07.8]} 42... Qh3+ {[%clk 0:00:24.1]} 43. Kg1 {[%clk
0:00:07.7]} 43... Qg3+ {[%clk 0:00:24.1]} 44. Kf1 {[%clk 0:00:06.8]} 44... Qd3+
{[%clk 0:00:22.7]} 45. Be2 {[%clk 0:00:05.8]} 45... Qxe4 {[%clk 0:00:22.9]} 46.
Rf6+ {[%clk 0:00:05.4]} 46... Kg5 {[%clk 0:00:22.8]} 47. Rf2 {[%clk 0:00:06.3]}
47... h4 {[%clk 0:00:22.3]} 48. Kg1 {[%clk 0:00:06.2]} 48... h3 {[%clk
0:00:22.3]} 49. Kh2 {[%clk 0:00:05.8]} 49... Kh4 {[%clk 0:00:21.9]} 50. Bxg4
{[%clk 0:00:06]} 50... Qxg4 {[%clk 0:00:21.2]} 51. d6 {[%clk 0:00:05.4]} 51...
Qg3+ {[%clk 0:00:21.1]} 52. Kh1 {[%clk 0:00:05.5]} 52... Qxf2 {[%clk 0:00:20.2]}
53. d7 {[%clk 0:00:05.1]} 53... Qg2# {[%clk 0:00:20.2]} 0-1

[Event "*** SCC Grand Prix: Titled Tuesday Blitz"]
[Site "Chess.com"]
[Date "2020.07.21"]
[Round "7"]
[White "BeanScreen"]
[Black "keepitcool9499"]
[Result "0-1"]
[WhiteElo "2685"]
[BlackElo "2583"]
[TimeControl "180+1"]
[EndTime "11:18:49 PDT"]
[Termination "keepitcool9499 won by resignation"]

1. e4 {[%clk 0:03:00.9]} 1... e6 {[%clk 0:03:00.9]} 2. d4 {[%clk 0:03:01.1]}
2... d5 {[%clk 0:02:59.4]} 3. Nc3 {[%clk 0:03:01.6]} 3... Nf6 {[%clk 0:02:59.7]}
4. Bg5 {[%clk 0:03:02.5]} 4... Be7 {[%clk 0:02:59.9]} 5. e5 {[%clk 0:03:02.9]}
5... Nfd7 {[%clk 0:03:00.4]} 6. h4 {[%clk 0:03:03.4]} 6... O-O {[%clk 0:03:00]}
7. Qg4 {[%clk 0:03:04.1]} 7... f5 {[%clk 0:02:55.9]} 8. Qg3 {[%clk 0:02:59.9]}
8... c5 {[%clk 0:02:49.2]} 9. dxc5 {[%clk 0:02:58]} 9... Nc6 {[%clk 0:02:47.3]}
10. Nf3 {[%clk 0:02:57]} 10... Nxc5 {[%clk 0:02:28.2]} 11. O-O-O {[%clk
0:02:57.1]} 11... Bd7 {[%clk 0:02:18.1]} 12. h5 {[%clk 0:02:47.8]} 12... Bxg5+
{[%clk 0:02:15.7]} 13. Nxg5 {[%clk 0:02:48.1]} 13... h6 {[%clk 0:02:14.2]} 14.
Nf3 {[%clk 0:02:45.5]} 14... Ne4 {[%clk 0:02:10]} 15. Nxe4 {[%clk 0:02:44.6]}
15... fxe4 {[%clk 0:02:10.9]} 16. Nd4 {[%clk 0:02:41.6]} 16... Nxd4 {[%clk
0:02:08.3]} 17. Rxd4 {[%clk 0:02:42.5]} 17... Qa5 {[%clk 0:02:00.4]} 18. Bc4
{[%clk 0:02:31.2]} 18... Rac8 {[%clk 0:01:48.4]} 19. Bb3 {[%clk 0:02:24.9]}
19... Qc5 {[%clk 0:01:48.8]} 20. Rhd1 {[%clk 0:02:24.8]} 20... Rf5 {[%clk
0:01:45.4]} 21. Rxd5 {[%clk 0:02:18.2]} 21... exd5 {[%clk 0:01:43.2]} 22. Rxd5
{[%clk 0:02:19.1]} 22... Qf8 {[%clk 0:01:38.8]} 23. Rxd7+ {[%clk 0:00:43.4]}
23... Kh8 {[%clk 0:01:33.6]} 24. Rd2 {[%clk 0:00:44.1]} 24... Rd8 {[%clk
0:01:30.1]} 25. Rxd8 {[%clk 0:00:41.7]} 25... Qxd8 {[%clk 0:01:31]} 26. e6
{[%clk 0:00:32.9]} 26... Rxh5 {[%clk 0:01:20.7]} 27. c4 {[%clk 0:00:16.8]} 27...
Rh1+ {[%clk 0:01:17.2]} 28. Kc2 {[%clk 0:00:17.6]} 28... Qd1+ {[%clk 0:00:49.7]}
29. Kc3 {[%clk 0:00:18.2]} 29... Qe1+ {[%clk 0:00:47.5]} 30. Kd4 {[%clk
0:00:18.5]} 30... Qd2+ {[%clk 0:00:44.4]} 31. Ke5 {[%clk 0:00:16.8]} 31... Rh5+
{[%clk 0:00:43.6]} 32. Kxe4 {[%clk 0:00:15.6]} 32... Rh1 {[%clk 0:00:33.7]} 33.
Kf5 {[%clk 0:00:09.7]} 33... Qd8 {[%clk 0:00:20.2]} 34. Qe3 {[%clk 0:00:06.3]}
34... Qf6+ {[%clk 0:00:18.2]} 35. Ke4 {[%clk 0:00:03.7]} 35... Re1 {[%clk
0:00:15]} 36. c5 {[%clk 0:00:02]} 36... Rxe3+ {[%clk 0:00:14.1]} 37. fxe3 {[%clk
0:00:02.9]} 37... Qe7 {[%clk 0:00:13]} 38. Ke5 {[%clk 0:00:02.7]} 38... g5
{[%clk 0:00:13.4]} 39. Kd5 {[%clk 0:00:02.4]} 39... Kg7 {[%clk 0:00:13.8]} 40.
Bc2 {[%clk 0:00:02.8]} 40... Kf6 {[%clk 0:00:13.6]} 41. Kd4 {[%clk 0:00:03.3]}
41... Qxe6 {[%clk 0:00:13.9]} 42. Bb3 {[%clk 0:00:04]} 42... Qe5+ {[%clk
0:00:14.4]} 43. Kd3 {[%clk 0:00:04.3]} 43... Qxb2 {[%clk 0:00:14.9]} 44. Kc4
{[%clk 0:00:04.4]} 44... Qe5 {[%clk 0:00:15]} 45. Kd3 {[%clk 0:00:04.4]} 45...
Qxc5 {[%clk 0:00:15.1]} 46. g4 {[%clk 0:00:04.4]} 46... Qe5 {[%clk 0:00:14.9]}
47. Bd1 {[%clk 0:00:03.7]} 47... b5 {[%clk 0:00:15.1]} 48. Ke2 {[%clk 0:00:04]}
48... a5 {[%clk 0:00:15.5]} 49. Kf2 {[%clk 0:00:04.6]} 49... b4 {[%clk
0:00:16.2]} 50. Bb3 {[%clk 0:00:05.1]} 50... Qb2+ {[%clk 0:00:16.4]} 51. Kf3
{[%clk 0:00:05.4]} 51... a4 {[%clk 0:00:16.7]} 52. Bd5 {[%clk 0:00:05.7]} 52...
b3 {[%clk 0:00:16.4]} 53. axb3 {[%clk 0:00:06.6]} 53... axb3 {[%clk 0:00:16.5]}
54. Be4 {[%clk 0:00:07]} 54... Qe5 {[%clk 0:00:16.3]} 55. Bb1 {[%clk 0:00:06.4]}
55... b2 {[%clk 0:00:16.6]} 56. Bc2 {[%clk 0:00:04.5]} 56... Qd5+ {[%clk
0:00:15]} 57. Be4 {[%clk 0:00:04.2]} 57... Qxe4+ {[%clk 0:00:15.3]} 58. Kxe4
{[%clk 0:00:03.3]} 58... b1=Q+ {[%clk 0:00:15.8]} 59. Kf3 {[%clk 0:00:03.9]}
59... Ke5 {[%clk 0:00:16.2]} 60. e4 {[%clk 0:00:01.9]} 60... Qxe4+ {[%clk
0:00:17.1]} 61. Kg3 {[%clk 0:00:02.8]} 61... Qf4+ {[%clk 0:00:17.4]} 62. Kh3
{[%clk 0:00:03.3]} 62... Ke4 {[%clk 0:00:17.1]} 63. Kg2 {[%clk 0:00:03.7]} 63...
Qxg4+ {[%clk 0:00:17.6]} 64. Kh2 {[%clk 0:00:04.3]} 64... Qf3 {[%clk 0:00:16.3]}
65. Kg1 {[%clk 0:00:04.5]} 65... Qe2 {[%clk 0:00:16.8]} 0-1